fUSD/lending_fUSD_20250720
["ID","MTS","AMOUNT","RATE_DAILY","PERIOD"]
[373371358,1752970257950,-810.15,0.00019287,2]
[373371359,1752970257960,-480.0,0.00019287,2]
[373371360,1752970257970,-480.0,0.00019287,2]
[373371361,1752970257980,-1885.7,0.00019287,2]
[373371362,1752970257989,-895.78,0.00019287,2]
[373371363,1752970257999,-480.0,0.00019287,2]
[373371364,1752970258009,-1439.41,0.00019287,2]
[373371365,1752970258020,-800.23,0.00019287,2]
[373371366,1752970258031,-191.64,0.00019287,2]
[373371367,1752970258041,-480.0,0.00019287,2]
[373371368,1752970258051,-1092.99,0.00019287,2]
[373371369,1752970258061,-480.0,0.00019287,2]
[373371370,1752970258071,-480.0,0.00019287,2]
[373371371,1752970258082,-480.0,0.00019287,2]
[373371372,1752970258093,-1000.0,0.00019287,2]
[373371373,1752970258103,-3651.51,0.00019287,2]
[373371374,1752970258113,-857.78,0.00019287,2]
[373371375,1752970258123,-574.38,0.00019287,2]
[373371376,1752970258132,-745.37,0.00019287,2]
[373371377,1752970258142,-480.0,0.00019287,2]
[373371378,1752970258152,-881.37,0.00019287,2]
[373371379,1752970258163,-873.25,0.00019287,2]
[373371380,1752970258173,-557.37,0.00019287,2]
[373371381,1752970258183,-460.0,0.00019287,2]
[373371382,1752970258194,-480.0,0.00019287,2]
[373371383,1752970258203,-480.0,0.00019287,2]
[373371384,1752970258215,-480.0,0.00019287,2]
[373371385,1752970258224,-19577.99,0.00019287,2]
[373371386,1752970258234,-496.51,0.00019287,2]
[373371387,1752970258244,-857.36,0.00019287,2]
[373371388,1752970258254,-480.0,0.00019287,2]
[373371389,1752970258266,-489.19,0.00019287,2]
[373371390,1752970258277,-480.0,0.00019287,2]
[373371391,1752970258287,-361.99558212,0.00019287,2]
[373371392,1752970258299,-160.0,0.00019289,2]
[373371393,1752970258310,-476.80070012,0.00019289,2]
[373371394,1752970258325,-839.16344753,0.00019289,2]
[373371395,1752970258338,-210.82967408,0.00019289,2]
[373371396,1752970258350,-157.67761563,0.00019297,2]
[373371397,1752970258362,-150.0,0.00019299,2]
[373371398,1752970258373,-150.0,0.00019309,2]
[373371399,1752970258383,-420.0,0.00019316,2]
[373371400,1752970258392,-168.0,0.00019321,2]
[373371401,1752970258403,-150.0,0.00019325,2]
[373371402,1752970258413,-168.0,0.00019326,2]
[373371403,1752970258423,-150.0,0.00019337,2]
[373371404,1752970258433,-1680.0,0.00019365,2]
[373371405,1752970258443,-197.16450187,0.00019387,2]
[373371406,1752970258452,-150.0,0.00019389,2]
[373371407,1752970258462,-500.0,0.00019396,2]
[373371408,1752970258472,-500.0,0.00019396,2]
[373371409,1752970258483,-500.0,0.00019396,2]
[373371410,1752970258495,-500.0,0.00019396,2]
[373371411,1752970258504,-500.0,0.00019396,2]
[373371412,1752970258519,-500.0,0.00019396,2]
[373371413,1752970258528,-500.0,0.00019396,2]
[373371414,1752970258538,-480.0,0.00019397,2]
[373371415,1752970258548,-480.0,0.00019397,2]
[373371416,1752970258558,-480.0,0.00019397,2]
[373371417,1752970258567,-480.0,0.00019397,2]
[373371418,1752970258577,-480.0,0.00019397,2]
[373371419,1752970258587,-480.0,0.00019397,2]
[373371420,1752970258598,-480.0,0.00019397,2]
[373371421,1752970258607,-480.0,0.00019397,2]
[373371422,1752970258618,-480.0,0.00019397,2]
[373371423,1752970258629,-480.0,0.00019397,2]
[373371424,1752970258639,-480.0,0.00019397,2]
[373371425,1752970258650,-480.0,0.00019397,2]
[373371426,1752970258878,-480.0,0.00019397,2]
[373371427,1752970258893,-220.0,0.00019397,2]
[373371428,1752970258903,-480.0,0.00019397,2]
[373371429,1752970258912,-480.0,0.00019397,2]
[373371430,1752970258923,-398.69,0.00019397,2]
[373371431,1752970258933,-835.74,0.00019397,2]
[373371432,1752970258943,-480.0,0.00019397,2]
[373371433,1752970258953,-480.0,0.00019397,2]
[373371434,1752970258963,-480.0,0.00019397,2]
[373371435,1752970258973,-480.0,0.00019397,2]
[373371436,1752970258982,-480.0,0.00019397,2]
[373371437,1752970258991,-480.0,0.00019397,2]
[373371438,1752970259001,-626.07,0.00019397,2]
[373371439,1752970259010,-519.65,0.00019397,2]
[373371440,1752970259019,-480.0,0.00019397,2]
[373371441,1752970259029,-480.0,0.00019397,2]
[373371442,1752970259038,-480.0,0.00019397,2]
[373371443,1752970259048,-480.0,0.00019397,2]
[373371444,1752970259057,-480.0,0.00019397,2]
[373371445,1752970259066,-480.0,0.00019397,2]
[373371446,1752970259076,-480.0,0.00019397,2]
[373371447,1752970259085,-480.0,0.00019397,2]
[373371448,1752970259095,-219.25,0.00019397,2]
[373371449,1752970259104,-480.0,0.00019397,2]
[373371450,1752970259113,-480.0,0.00019397,2]
[373371451,1752970259123,-562.81,0.00019397,2]
[373371452,1752970259132,-480.0,0.00019397,2]
[373371453,1752970259142,-480.0,0.00019397,2]
[373371454,1752970259151,-604.19,0.00019397,2]
[373371455,1752970259160,-480.0,0.00019397,2]
[373371456,1752970259170,-480.0,0.00019397,2]
[373371457,1752970259179,-480.0,0.00019397,2]
[373371458,1752970259189,-693.21,0.00019397,2]
[373371459,1752970259200,-639.35,0.00019397,2]
[373371460,1752970259211,-480.0,0.00019397,2]
[373371461,1752970259221,-480.0,0.00019397,2]
[373371462,1752970259231,-480.0,0.00019397,2]
[373371463,1752970259241,-480.0,0.00019397,2]
[373371464,1752970259254,-480.0,0.00019397,2]
[373371465,1752970259265,-206.61,0.00019397,2]
[373371466,1752970259275,-480.0,0.00019397,2]
[373371467,1752970259285,-480.0,0.00019397,2]
[373371468,1752970259301,-630.63,0.00019397,2]
[373371469,1752970259319,-480.0,0.00019397,2]
[373371470,1752970259328,-1045.9,0.00019397,2]
[373371471,1752970259338,-279.57,0.00019397,2]
[373371472,1752970259347,-480.0,0.00019397,2]
[373371473,1752970259356,-480.0,0.00019397,2]
[373371474,1752970259366,-480.0,0.00019397,2]
[373371475,1752970259377,-480.0,0.00019397,2]
[373371476,1752970259386,-480.0,0.00019397,2]
[373371477,1752970259396,-480.0,0.00019397,2]
[373371478,1752970259406,-517.02,0.00019397,2]
[373371479,1752970259415,-265.5,0.00019397,2]
[373371480,1752970259425,-632.98,0.00019397,2]
[373371481,1752970259435,-480.0,0.00019397,2]
[373371482,1752970259444,-480.0,0.00019397,2]
[373371483,1752970259455,-480.0,0.00019397,2]
[373371484,1752970259465,-546.64,0.00019397,2]
[373371485,1752970259475,-480.0,0.00019397,2]
[373371486,1752970259485,-480.0,0.00019397,2]
[373371487,1752970259494,-480.0,0.00019397,2]
[373371488,1752970259504,-480.0,0.00019397,2]
[373371489,1752970259519,-480.0,0.00019397,2]
[373371490,1752970259528,-480.0,0.00019397,2]
[373371491,1752970259537,-1132.18,0.00019397,2]
[373371492,1752970259547,-480.0,0.00019397,2]
[373371493,1752970259558,-480.0,0.00019397,2]
[373371494,1752970259567,-480.0,0.00019397,2]
[373371495,1752970259577,-818.66,0.00019397,2]
[373371496,1752970259586,-480.0,0.00019397,2]
[373371497,1752970259598,-455.81,0.00019397,2]
[373371498,1752970259608,-480.0,0.00019397,2]
[373371499,1752970259617,-480.0,0.00019397,2]
[373371500,1752970259627,-547.24,0.00019397,2]
[373371501,1752970259636,-598.84,0.00019397,2]
[373371502,1752970259645,-480.0,0.00019397,2]
[373371503,1752970259654,-480.0,0.00019397,2]
[373371504,1752970259664,-493.07,0.00019397,2]
[373371505,1752970259674,-480.0,0.00019397,2]
[373371506,1752970259684,-712.86,0.00019397,2]
[373371507,1752970259693,-480.0,0.00019397,2]
[373371508,1752970259703,-480.0,0.00019397,2]
[373371509,1752970259713,-480.0,0.00019397,2]
[373371510,1752970259722,-480.0,0.00019397,2]
[373371511,1752970259731,-320.34388824,0.00019397,2]
[373371512,1752970259741,-480.0,0.00019397,2]
[373371513,1752970259750,-480.0,0.00019397,2]
[373371514,1752970259759,-480.0,0.00019397,2]
[373371515,1752970259769,-480.0,0.00019397,2]
[373371516,1752970259779,-480.0,0.00019397,2]
[373371517,1752970259788,-480.0,0.00019397,2]
[373371518,1752970259798,-480.0,0.00019397,2]
[373371519,1752970259807,-397.11,0.00019397,2]
[373371520,1752970259817,-480.0,0.00019397,2]
[373371521,1752970259826,-480.0,0.00019397,2]
[373371522,1752970259835,-480.0,0.00019397,2]
[373371523,1752970259844,-480.0,0.00019397,2]
[373371524,1752970259853,-480.0,0.00019397,2]
[373371525,1752970259872,-433.17,0.00019397,2]
[373371526,1752970259881,-480.0,0.00019397,2]
[373371527,1752970259890,-570.32319194,0.00019397,2]
[373371528,1752970259899,-480.0,0.00019397,2]
[373371529,1752970259908,-480.0,0.00019397,2]
[373371530,1752970259918,-480.0,0.00019397,2]
[373371531,1752970259927,-644.04,0.00019397,2]
[373371532,1752970259937,-429.1,0.00019397,2]
[373371533,1752970259947,-586.82,0.00019397,2]
[373371534,1752970259956,-215.93,0.00019397,2]
[373371535,1752970259966,-602.61,0.00019397,2]
[373371536,1752970259975,-480.0,0.00019397,2]
[373371537,1752970259985,-480.0,0.00019397,2]
[373371538,1752970259994,-480.0,0.00019397,2]
[373371539,1752970260003,-480.0,0.00019397,2]
[373371540,1752970260013,-480.0,0.00019397,2]
[373371541,1752970260022,-480.0,0.00019397,2]
[373371542,1752970260032,-480.0,0.00019397,2]
[373371543,1752970260042,-480.0,0.00019397,2]
[373371544,1752970260052,-480.0,0.00019397,2]
[373371545,1752970260062,-480.0,0.00019397,2]
[373371546,1752970260071,-480.0,0.00019397,2]
[373371547,1752970260081,-637.66,0.00019397,2]
[373371548,1752970260091,-480.0,0.00019397,2]
[373371549,1752970260100,-480.0,0.00019397,2]
[373371550,1752970260109,-480.0,0.00019397,2]
[373371551,1752970260119,-480.0,0.00019397,2]
[373371552,1752970260129,-480.0,0.00019397,2]
[373371553,1752970260138,-527.68,0.00019397,2]
[373371554,1752970260147,-480.0,0.00019397,2]
[373371555,1752970260157,-480.0,0.00019397,2]
[373371556,1752970260167,-480.0,0.00019397,2]
[373371557,1752970260176,-847.27,0.00019397,2]
[373371558,1752970260187,-480.0,0.00019397,2]
[373371559,1752970260196,-1201.32,0.00019397,2]
[373371560,1752970260205,-507.67,0.00019397,2]
[373371561,1752970260215,-480.0,0.00019397,2]
[373371562,1752970260225,-567.75,0.00019397,2]
[373371563,1752970260236,-739.14,0.00019397,2]
[373371564,1752970260245,-480.0,0.00019397,2]
[373371565,1752970260255,-480.0,0.00019397,2]
[373371566,1752970260264,-480.0,0.00019397,2]
[373371567,1752970260273,-480.0,0.00019397,2]
[373371568,1752970260282,-480.0,0.00019397,2]
[373371569,1752970260292,-669.68,0.00019397,2]
[373371570,1752970260301,-480.0,0.00019397,2]
[373371571,1752970260311,-2228.1,0.00019397,2]
[373371572,1752970260320,-480.0,0.00019397,2]
[373371573,1752970260330,-1402.78,0.00019397,2]
[373371574,1752970260339,-2517.57,0.00019397,2]
[373371575,1752970260349,-480.0,0.00019397,2]
[373371576,1752970260359,-1560.99,0.00019397,2]
[373371577,1752970260368,-480.0,0.00019397,2]
[373371578,1752970260377,-480.0,0.00019397,2]
[373371579,1752970260387,-982.26,0.00019397,2]
[373371580,1752970260396,-1542.51,0.00019397,2]
[373371581,1752970260405,-480.0,0.00019397,2]
[373371582,1752970260415,-480.0,0.00019397,2]
[373371583,1752970260424,-480.0,0.00019397,2]
[373371584,1752970260434,-2153.19,0.00019397,2]
[373371585,1752970260444,-629.73,0.00019397,2]
[373371586,1752970260453,-1136.23,0.00019397,2]
[373371587,1752970260465,-846.29,0.00019397,2]
[373371588,1752970260474,-2378.18,0.00019397,2]
[373371589,1752970260483,-480.0,0.00019397,2]
[373371590,1752970260492,-719.06,0.00019397,2]
[373371591,1752970260502,-1030.1,0.00019397,2]
[373371592,1752970260516,-1544.48,0.00019397,2]
[373371593,1752970260525,-626.29,0.00019397,2]
[373371594,1752970260535,-3211.6,0.00019397,2]
[373371595,1752970260544,-771.5,0.00019397,2]
[373371596,1752970260554,-881.92,0.00019397,2]
[373371597,1752970260563,-1138.06,0.00019397,2]
[373371598,1752970260572,-480.0,0.00019397,2]
[373371599,1752970260582,-508.14,0.00019397,2]
[373371600,1752970260592,-540.91,0.00019397,2]
[373371601,1752970260602,-770.5,0.00019397,2]
[373371602,1752970260611,-534.2,0.00019397,2]
[373371603,1752970260620,-1861.2,0.00019397,2]
[373371604,1752970260629,-1212.1,0.00019397,2]
[373371605,1752970260639,-776.79,0.00019397,2]
[373371606,1752970260648,-631.13,0.00019397,2]
[373371607,1752970260657,-480.0,0.00019397,2]
[373371608,1752970260667,-269.54,0.00019397,2]
[373371609,1752970260677,-1447.75,0.00019397,2]
[373371610,1752970260686,-707.34,0.00019397,2]
[373371611,1752970260695,-628.73,0.00019397,2]
[373371612,1752970260704,-480.0,0.00019397,2]
[373371613,1752970260716,-1045.87,0.00019397,2]
[373371614,1752970260725,-602.54,0.00019397,2]
[373371615,1752970260735,-480.0,0.00019397,2]
[373371616,1752970260744,-294.18,0.00019397,2]
[373371617,1752970260753,-480.0,0.00019397,2]
[373371618,1752970260762,-480.0,0.00019397,2]
[373371619,1752970260771,-677.69,0.00019397,2]
[373371620,1752970260781,-4260.51,0.00019397,2]
[373371621,1752970260790,-480.0,0.00019397,2]
[373371622,1752970260800,-507.8,0.00019397,2]
[373371623,1752970260809,-480.0,0.00019397,2]
[373371624,1752970260818,-737.47,0.00019397,2]
[373371625,1752970260827,-1994.78,0.00019397,2]
[373371626,1752970260837,-557.86,0.00019397,2]
[373371627,1752970260847,-794.86,0.00019397,2]
[373371628,1752970260856,-1060.74,0.00019397,2]
[373371629,1752970260865,-328.090919,0.00019397,2]
[373371630,1752970260874,-1139.98,0.00019397,2]
[373371631,1752970260884,-334.888669,0.00019397,2]
[373371632,1752970260893,-480.0,0.00019397,2]
[373371633,1752970260902,-1026.99,0.00019397,2]
[373371634,1752970260911,-480.0,0.00019397,2]
[373371635,1752970260920,-1202.03,0.00019397,2]
[373371636,1752970260930,-561.64,0.00019397,2]
[373371637,1752970260939,-826.17,0.00019397,2]
[373371638,1752970260949,-480.0,0.00019397,2]
[373371639,1752970260958,-1155.7,0.00019397,2]
[373371640,1752970260971,-480.0,0.00019397,2]
[373371641,1752970260981,-480.0,0.00019397,2]
[373371642,1752970260991,-920.67,0.00019397,2]
[373371643,1752970261000,-753.91,0.00019397,2]
[373371644,1752970261010,-480.0,0.00019397,2]
[373371645,1752970261020,-1934.92,0.00019397,2]
[373371646,1752970261029,-1864.68,0.00019397,2]
[373371647,1752970261038,-480.0,0.00019397,2]
[373371648,1752970261048,-672.07,0.00019397,2]
[373371649,1752970261057,-784.29,0.00019397,2]
[373371650,1752970261067,-480.0,0.00019397,2]
[373371651,1752970261076,-794.3,0.00019397,2]
[373371652,1752970261086,-3805.41,0.00019397,2]
[373371653,1752970261095,-2589.85,0.00019397,2]
[373371654,1752970261105,-652.73,0.00019397,2]
[373371655,1752970261114,-911.41,0.00019397,2]
[373371656,1752970261124,-4990.2,0.00019397,2]
[373371657,1752970261133,-480.0,0.00019397,2]
[373371658,1752970261143,-822.43,0.00019397,2]
[373371659,1752970261152,-480.0,0.00019397,2]
[373371660,1752970261161,-1626.59,0.00019397,2]
[373371661,1752970261171,-852.78,0.00019397,2]
[373371662,1752970261180,-480.0,0.00019397,2]
[373371663,1752970261189,-1629.51,0.00019397,2]
[373371664,1752970261266,-493.86,0.00019397,2]
[373371665,1752970261275,-480.0,0.00019397,2]
[373371666,1752970261285,-713.71,0.00019397,2]
[373371667,1752970261295,-1584.58,0.00019397,2]
[373371668,1752970261304,-788.98,0.00019397,2]
[373371669,1752970261314,-929.86,0.00019397,2]
[373371670,1752970261323,-329.133769,0.00019397,2]
[373371671,1752970261332,-1556.72,0.00019397,2]
[373371672,1752970261342,-480.0,0.00019397,2]
[373371673,1752970261351,-4796.25,0.00019397,2]
[373371674,1752970261361,-557.86,0.00019397,2]
[373371675,1752970261370,-480.0,0.00019397,2]
[373371676,1752970261379,-480.0,0.00019397,2]
[373371677,1752970261388,-672.01,0.00019397,2]
[373371678,1752970261397,-2998.73,0.00019397,2]
[373371679,1752970261406,-480.0,0.00019397,2]
[373371680,1752970261415,-1400.08,0.00019397,2]
[373371681,1752970261424,-2572.89,0.00019397,2]
[373371682,1752970261434,-582.4,0.00019397,2]
[373371683,1752970261443,-309.49,0.00019397,2]
[373371684,1752970261452,-535.67,0.00019397,2]
[373371685,1752970261464,-480.0,0.00019397,2]
[373371686,1752970261475,-480.0,0.00019397,2]
[373371687,1752970261484,-480.0,0.00019397,2]
[373371688,1752970261493,-556.1,0.00019397,2]
[373371689,1752970261502,-620.42,0.00019397,2]
[373371690,1752970261512,-480.0,0.00019397,2]
[373371691,1752970261524,-480.0,0.00019397,2]
[373371692,1752970261534,-2903.43,0.00019397,2]
[373371693,1752970261543,-802.25,0.00019397,2]
[373371694,1752970261555,-480.0,0.00019397,2]
[373371695,1752970261564,-480.0,0.00019397,2]
[373371696,1752970261575,-601.32,0.00019397,2]
[373371697,1752970261584,-483.94,0.00019397,2]
[373371698,1752970261594,-702.17,0.00019397,2]
[373371699,1752970261605,-480.0,0.00019397,2]
[373371700,1752970261614,-843.4,0.00019397,2]
[373371701,1752970261623,-480.0,0.00019397,2]
[373371702,1752970261633,-3587.94,0.00019397,2]
[373371703,1752970261643,-480.0,0.00019397,2]
[373371704,1752970261651,-480.0,0.00019397,2]
[373371705,1752970261660,-480.0,0.00019397,2]
[373371706,1752970261669,-2721.42,0.00019397,2]
[373371707,1752970261679,-913.23,0.00019397,2]
[373371708,1752970261689,-869.16,0.00019397,2]
[373371709,1752970261698,-480.0,0.00019397,2]
[373371710,1752970261708,-480.0,0.00019397,2]
[373371711,1752970261720,-996.39,0.00019397,2]
[373371712,1752970261729,-480.0,0.00019397,2]
[373371713,1752970261738,-856.18,0.00019397,2]
[373371714,1752970261746,-913.59,0.00019397,2]
[373371715,1752970261755,-484.76,0.00019397,2]
[373371716,1752970261765,-480.0,0.00019397,2]
[373371717,1752970261776,-1037.32,0.00019397,2]
[373371718,1752970261788,-777.46,0.00019397,2]
[373371719,1752970261797,-486.67,0.00019397,2]
[373371720,1752970261808,-676.62,0.00019397,2]
[373371721,1752970261818,-480.0,0.00019397,2]
[373371722,1752970261827,-480.0,0.00019397,2]
[373371723,1752970261836,-7250.19,0.00019397,2]
[373371724,1752970261845,-819.37,0.00019397,2]
[373371725,1752970261854,-480.0,0.00019397,2]
[373371726,1752970261863,-480.0,0.00019397,2]
[373371727,1752970261872,-1201.34,0.00019397,2]
[373371728,1752970261882,-480.0,0.00019397,2]
[373371729,1752970261891,-480.0,0.00019397,2]
[373371730,1752970261900,-480.0,0.00019397,2]
[373371731,1752970261910,-594.97,0.00019397,2]
[373371732,1752970261919,-480.0,0.00019397,2]
[373371733,1752970261929,-2119.13,0.00019397,2]
[373371734,1752970261939,-480.0,0.00019397,2]
[373371735,1752970261949,-517.57,0.00019397,2]
[373371736,1752970261958,-4070.37,0.00019397,2]
[373371737,1752970261969,-1390.89,0.00019397,2]
[373371738,1752970261978,-997.14,0.00019397,2]
[373371739,1752970261988,-570.13,0.00019397,2]
[373371740,1752970261997,-480.0,0.00019397,2]
[373371741,1752970262007,-445.51219887,0.00019397,2]
[373371742,1752970262016,-810.15,0.00019397,2]
[373371743,1752970262026,-480.0,0.00019397,2]
[373371744,1752970262035,-480.0,0.00019397,2]
[373371745,1752970262045,-1885.7,0.00019397,2]
[373371746,1752970262054,-895.78,0.00019397,2]
[373371747,1752970262063,-480.0,0.00019397,2]
[373371748,1752970262072,-1439.41,0.00019397,2]
[373371749,1752970262082,-800.23,0.00019397,2]
[373371750,1752970262091,-480.0,0.00019397,2]
[373371751,1752970262100,-1092.99,0.00019397,2]
[373371752,1752970262110,-480.0,0.00019397,2]
[373371753,1752970262119,-480.0,0.00019397,2]
[373371754,1752970262129,-480.0,0.00019397,2]
[373371755,1752970262139,-3651.51,0.00019397,2]
[373371756,1752970262148,-1000.0,0.00019397,2]
[373371757,1752970262157,-857.78,0.00019397,2]
[373371758,1752970262167,-574.38,0.00019397,2]
[373371759,1752970262176,-745.37,0.00019397,2]
[373371760,1752970262186,-480.0,0.00019397,2]
[373371761,1752970262195,-881.37,0.00019397,2]
[373371762,1752970262204,-873.25,0.00019397,2]
[373371763,1752970262215,-557.37,0.00019397,2]
[373371764,1752970262225,-480.0,0.00019397,2]
[373371765,1752970262234,-480.0,0.00019397,2]
[373371766,1752970262243,-480.0,0.00019397,2]
[373371767,1752970262253,-19577.99,0.00019397,2]
[373371768,1752970262262,-480.0,0.00019397,2]
[373371769,1752970262272,-496.51,0.00019397,2]
[373371770,1752970262281,-489.19,0.00019397,2]
[373371771,1752970262291,-857.36,0.00019397,2]
[373371772,1752970262300,-480.0,0.00019397,2]
[373371773,1752970262310,-500.0,0.00019399,2]
[373371774,1752970262319,-241.16,0.00019404,2]
[373371775,1752970262328,-600.0,0.00019417,2]
[373371776,1752970262338,-779.40340098,0.00019429,2]
[373371777,1752970262347,-168.0,0.00019484,2]
[373371778,1752970262355,-500.0,0.00019505,2]
[373371779,1752970262364,-312.28,0.00019505,2]
[373371780,1752970262374,-331.49414078,0.00019505,2]
[373371781,1752970262383,-150.0,0.00019505,2]
[373371782,1752970262392,-500.0,0.00019505,2]
[373371783,1752970262401,-500.0,0.00019505,2]
[373371784,1752970262411,-480.0,0.00019506,2]
[373371785,1752970262420,-480.0,0.00019506,2]
[373371786,1752970262429,-480.0,0.00019506,2]
[373371787,1752970262438,-480.0,0.00019506,2]
[373371788,1752970262447,-480.0,0.00019506,2]
[373371789,1752970262457,-480.0,0.00019506,2]
[373371790,1752970262467,-480.0,0.00019506,2]
[373371791,1752970262476,-480.0,0.00019506,2]
[373371792,1752970262486,-627.89,0.00019506,2]
[373371793,1752970262495,-480.0,0.00019506,2]
[373371794,1752970262505,-480.0,0.00019506,2]
[373371795,1752970262518,-538.27,0.00019506,2]
[373371796,1752970262527,-480.0,0.00019506,2]
[373371797,1752970262536,-480.0,0.00019506,2]
[373371798,1752970262545,-480.0,0.00019506,2]
[373371799,1752970262556,-835.74,0.00019506,2]
[373371800,1752970262565,-197.6639079,0.00019506,2]
[373371801,1752970262574,-480.0,0.00019506,2]
[373371802,1752970262584,-480.0,0.00019506,2]
[373371803,1752970262594,-480.0,0.00019506,2]
[373371804,1752970262604,-480.0,0.00019506,2]
[373371805,1752970262613,-480.0,0.00019506,2]
[373371806,1752970262622,-626.07,0.00019506,2]
[373371807,1752970262631,-519.65,0.00019506,2]
[373371808,1752970262640,-480.0,0.00019506,2]
[373371809,1752970262649,-480.0,0.00019506,2]
[373371810,1752970262658,-480.0,0.00019506,2]
[373371811,1752970262667,-480.0,0.00019506,2]
[373371812,1752970262676,-480.0,0.00019506,2]
[373371813,1752970262685,-480.0,0.00019506,2]
[373371814,1752970262694,-152.4,0.00019506,2]
[373371815,1752970262703,-480.0,0.00019506,2]
[373371816,1752970262715,-480.0,0.00019506,2]
[373371817,1752970262724,-480.0,0.00019506,2]
[373371818,1752970262733,-562.81,0.00019506,2]
[373371819,1752970262742,-480.0,0.00019506,2]
[373371820,1752970262751,-480.0,0.00019506,2]
[373371821,1752970262760,-480.0,0.00019506,2]
[373371822,1752970262769,-480.0,0.00019506,2]
[373371823,1752970262778,-693.21,0.00019506,2]
[373371824,1752970262787,-208.34120709,0.00019506,2]
[373371825,1752970262796,-639.35,0.00019506,2]
[373371826,1752970262805,-480.0,0.00019506,2]
[373371827,1752970262814,-480.0,0.00019506,2]
[373371828,1752970262823,-480.0,0.00019506,2]
[373371829,1752970262832,-480.0,0.00019506,2]
[373371830,1752970262841,-480.0,0.00019506,2]
[373371831,1752970262850,-480.0,0.00019506,2]
[373371832,1752970262859,-480.0,0.00019506,2]
[373371833,1752970262868,-630.63,0.00019506,2]
[373371834,1752970262877,-480.0,0.00019506,2]
[373371835,1752970262886,-1045.9,0.00019506,2]
[373371836,1752970262895,-480.0,0.00019506,2]
[373371837,1752970262905,-480.0,0.00019506,2]
[373371838,1752970262914,-480.0,0.00019506,2]
[373371839,1752970262923,-480.0,0.00019506,2]
[373371840,1752970262932,-480.0,0.00019506,2]
[373371841,1752970262941,-480.0,0.00019506,2]
[373371842,1752970262950,-517.02,0.00019506,2]
[373371843,1752970262959,-632.98,0.00019506,2]
[373371844,1752970262970,-480.0,0.00019506,2]
[373371845,1752970262979,-480.0,0.00019506,2]
[373371846,1752970262988,-480.0,0.00019506,2]
[373371847,1752970262999,-546.64,0.00019506,2]
[373371848,1752970263009,-480.0,0.00019506,2]
[373371849,1752970263019,-480.0,0.00019506,2]
[373371850,1752970263028,-248.04,0.00019506,2]
[373371851,1752970263038,-480.0,0.00019506,2]
[373371852,1752970263048,-480.0,0.00019506,2]
[373371853,1752970263058,-1132.18,0.00019506,2]
[373371854,1752970263067,-480.0,0.00019506,2]
[373371855,1752970263077,-480.0,0.00019506,2]
[373371856,1752970263087,-480.0,0.00019506,2]
[373371857,1752970263096,-480.0,0.00019506,2]